fUST/lending_fUST_20250405
["ID","MTS","AMOUNT","RATE_DAILY","PERIOD"]
[357177432,1743861045932,-401.0,0.0002058,2]
[357177433,1743861045942,-151.0,0.00020739,2]
[357177434,1743861045951,-160.0,0.0002082,2]
[357177435,1743861045961,-500.0,0.00020821,2]
[357177436,1743861045970,-177.2,0.00020821,2]
[357177437,1743861045980,-500.0,0.00020821,2]
[357177438,1743861045990,-500.0,0.00020821,2]
[357177439,1743861046000,-500.0,0.00020821,2]
[357177440,1743861046010,-500.0,0.00020821,2]
[357177441,1743861046019,-500.0,0.00020821,2]
[357177442,1743861046030,-876.05,0.00020821,2]
[357177443,1743861046039,-500.0,0.00020821,2]
[357177445,1743861046049,-500.0,0.00020821,2]
[357177447,1743861046058,-500.0,0.00020821,2]
[357177448,1743861046068,-500.0,0.00020821,2]
[357177450,1743861046078,-500.0,0.00020821,2]
[357177452,1743861046087,-576.95851002,0.00020821,2]
[357177453,1743861046097,-500.0,0.00020821,2]
[357177454,1743861046106,-500.0,0.00020821,2]
[357177455,1743861046116,-500.0,0.00020821,2]
[357177456,1743861046125,-500.0,0.00020821,2]
[357177457,1743861046135,-536.58,0.00020821,2]
[357177458,1743861046145,-983.09,0.00020821,2]
[357177459,1743861046155,-500.0,0.00020821,2]
[357177460,1743861046164,-500.0,0.00020821,2]
[357177461,1743861046173,-500.0,0.00020821,2]
[357177462,1743861046182,-2143.93,0.00020821,2]
[357177463,1743861046192,-500.0,0.00020821,2]
[357177464,1743861046202,-500.0,0.00020821,2]
[357177466,1743861046211,-500.0,0.00020821,2]
[357177468,1743861046220,-1663.92,0.00020821,2]
[357177469,1743861046229,-500.0,0.00020821,2]
[357177471,1743861046238,-2101.11,0.00020821,2]
[357177473,1743861046247,-500.0,0.00020821,2]
[357177475,1743861046256,-500.0,0.00020821,2]
[357177476,1743861046265,-500.0,0.00020821,2]
[357177477,1743861046274,-500.0,0.00020821,2]
[357177478,1743861046283,-500.0,0.00020821,2]
[357177479,1743861046292,-500.0,0.00020821,2]
[357177480,1743861046301,-500.0,0.00020821,2]
[357177482,1743861046311,-500.0,0.00020821,2]
[357177483,1743861046321,-500.0,0.00020821,2]
[357177484,1743861046330,-500.0,0.00020821,2]
[357177485,1743861046338,-500.0,0.00020821,2]
[357177486,1743861046346,-500.0,0.00020821,2]
[357177487,1743861046356,-500.0,0.00020821,2]
[357177488,1743861046365,-500.0,0.00020821,2]
[357177489,1743861046374,-500.0,0.00020821,2]
[357177490,1743861046384,-500.0,0.00020821,2]
[357177491,1743861046393,-500.0,0.00020821,2]
[357177492,1743861046402,-500.0,0.00020821,2]
[357177493,1743861046412,-500.0,0.00020821,2]
[357177494,1743861046421,-1461.98,0.00020821,2]
[357177495,1743861046433,-500.0,0.00020821,2]
[357177496,1743861046442,-500.0,0.00020821,2]
[357177497,1743861046451,-1262.37,0.00020821,2]
[357177498,1743861046460,-240.34067727,0.00020821,2]
[357177499,1743861046469,-500.0,0.00020821,2]
[357177500,1743861046479,-500.0,0.00020821,2]
[357177501,1743861046488,-500.0,0.00020821,2]
[357177502,1743861046498,-323.37077207,0.00020821,2]
[357177503,1743861046507,-500.0,0.00020821,2]
[357177504,1743861046516,-3815.9,0.00020821,2]
[357177505,1743861046526,-500.0,0.00020821,2]
[357177506,1743861046535,-1548.21,0.00020821,2]
[357177507,1743861046544,-1524.27,0.00020821,2]
[357177508,1743861046553,-646.31,0.00020821,2]
[357177509,1743861046562,-758.38,0.00020821,2]
[357177510,1743861046571,-500.0,0.00020821,2]
[357177511,1743861046580,-676.38,0.00020821,2]
[357177512,1743861046589,-593.38,0.00020821,2]
[357177513,1743861046599,-500.0,0.00020821,2]
[357177514,1743861046609,-500.0,0.00020821,2]
[357177515,1743861046619,-500.0,0.00020821,2]
[357177516,1743861046628,-1245.73,0.00020821,2]
[357177517,1743861046637,-500.0,0.00020821,2]
[357177518,1743861046646,-500.0,0.00020821,2]
[357177519,1743861046655,-2259.57,0.00020821,2]
[357177520,1743861046665,-500.0,0.00020821,2]
[357177521,1743861046674,-500.0,0.00020821,2]
[357177522,1743861046684,-4020.06,0.00020821,2]
[357177523,1743861046693,-500.0,0.00020821,2]
[357177524,1743861046702,-500.0,0.00020821,2]
[357177525,1743861046712,-500.0,0.00020821,2]
[357177526,1743861046721,-500.0,0.00020821,2]
[357177527,1743861046730,-962.68,0.00020821,2]
[357177528,1743861046739,-1394.62,0.00020821,2]
[357177529,1743861046748,-500.0,0.00020821,2]
[357177530,1743861046757,-500.0,0.00020821,2]
[357177531,1743861046766,-500.0,0.00020821,2]
[357177532,1743861046775,-500.0,0.00020821,2]
[357177533,1743861046784,-14067.93,0.00020821,2]
[357177534,1743861046795,-920.98,0.00020821,2]
[357177535,1743861046807,-500.0,0.00020821,2]
[357177536,1743861046822,-1022.95,0.00020821,2]
[357177537,1743861046836,-500.0,0.00020821,2]
[357177538,1743861046850,-500.0,0.00020821,2]
[357177539,1743861046860,-500.0,0.00020821,2]
[357177540,1743861046871,-500.0,0.00020821,2]
[357177541,1743861046883,-500.0,0.00020821,2]
[357177542,1743861046896,-500.0,0.00020821,2]
[357177543,1743861046907,-500.0,0.00020821,2]
[357177544,1743861046919,-797.72,0.00020821,2]
[357177545,1743861046931,-500.0,0.00020821,2]
[357177546,1743861046943,-500.0,0.00020821,2]
[357177547,1743861046955,-500.0,0.00020821,2]
[357177548,1743861046966,-500.0,0.00020821,2]
[357177549,1743861046978,-510.47,0.00020821,2]
[357177550,1743861046991,-2149.2,0.00020821,2]
[357177551,1743861047003,-621.57,0.00020821,2]
[357177552,1743861047015,-500.0,0.00020821,2]
[357177553,1743861047026,-500.0,0.00020821,2]
[357177554,1743861047038,-7739.62052544,0.00020934,3]
[357177555,1743861047049,-160.0,0.00021094,2]
[357177556,1743861047060,-500.0,0.00021095,2]
[357177557,1743861047073,-500.0,0.00021095,2]
[357177558,1743861047086,-500.0,0.00021095,2]
[357177559,1743861047097,-500.0,0.00021095,2]
[357177560,1743861047110,-500.0,0.00021095,2]
[357177561,1743861047120,-500.0,0.00021095,2]
[357177562,1743861047130,-876.05,0.00021095,2]
[357177563,1743861047141,-500.0,0.00021095,2]
[357177564,1743861047152,-500.0,0.00021095,2]
[357177565,1743861047163,-500.0,0.00021095,2]
[357177566,1743861047175,-500.0,0.00021095,2]
[357177567,1743861047187,-500.0,0.00021095,2]
[357177568,1743861047199,-500.0,0.00021095,2]
[357177569,1743861047211,-425.95,0.00021095,2]
[357177570,1743861047222,-500.0,0.00021095,2]
[357177571,1743861047234,-536.58,0.00021095,2]
[357177572,1743861047246,-983.09,0.00021095,2]
[357177573,1743861047258,-500.0,0.00021095,2]
[357177574,1743861047270,-500.0,0.00021095,2]
[357177575,1743861047283,-500.0,0.00021095,2]
[357177576,1743861047292,-2143.93,0.00021095,2]
[357177577,1743861047302,-500.0,0.00021095,2]
[357177578,1743861047312,-500.0,0.00021095,2]
[357177579,1743861047322,-500.0,0.00021095,2]
[357177580,1743861047333,-1663.92,0.00021095,2]
[357177581,1743861047345,-500.0,0.00021095,2]
[357177582,1743861047359,-2101.11,0.00021095,2]
[357177583,1743861047371,-500.0,0.00021095,2]
[357177584,1743861047382,-500.0,0.00021095,2]
[357177585,1743861047392,-500.0,0.00021095,2]
[357177586,1743861047402,-500.0,0.00021095,2]
[357177587,1743861047413,-500.0,0.00021095,2]
[357177588,1743861047423,-500.0,0.00021095,2]
[357177589,1743861047435,-500.0,0.00021095,2]
[357177590,1743861047446,-500.0,0.00021095,2]
[357177591,1743861047455,-500.0,0.00021095,2]
[357177592,1743861047465,-500.0,0.00021095,2]
[357177593,1743861047475,-500.0,0.00021095,2]
[357177594,1743861047485,-500.0,0.00021095,2]
[357177595,1743861047496,-500.0,0.00021095,2]
[357177596,1743861047506,-500.0,0.00021095,2]
[357177597,1743861047516,-500.0,0.00021095,2]
[357177598,1743861047526,-500.0,0.00021095,2]
[357177599,1743861047536,-500.0,0.00021095,2]
[357177600,1743861047546,-500.0,0.00021095,2]
[357177601,1743861047557,-359.60603187,0.00021095,2]
[357177602,1743861047567,-1461.98,0.00021095,2]
[357177603,1743861047578,-500.0,0.00021095,2]
[357177604,1743861047589,-500.0,0.00021095,2]
[357177605,1743861047600,-1262.37,0.00021095,2]
[357177606,1743861047610,-500.0,0.00021095,2]
[357177607,1743861047621,-500.0,0.00021095,2]
[357177608,1743861047632,-500.0,0.00021095,2]
[357177609,1743861047642,-500.0,0.00021095,2]
[357177610,1743861047652,-3815.9,0.00021095,2]
[357177611,1743861047662,-500.0,0.00021095,2]
[357177612,1743861047673,-1548.21,0.00021095,2]
[357177613,1743861047683,-1524.27,0.00021095,2]
[357177614,1743861047693,-646.31,0.00021095,2]
[357177615,1743861047704,-758.38,0.00021095,2]
[357177616,1743861047714,-500.0,0.00021095,2]
[357177617,1743861047725,-676.38,0.00021095,2]
[357177618,1743861047735,-593.38,0.00021095,2]
[357177619,1743861047747,-500.0,0.00021095,2]
[357177620,1743861047758,-500.0,0.00021095,2]
[357177621,1743861047769,-500.0,0.00021095,2]
[357177622,1743861047779,-1245.73,0.00021095,2]
[357177623,1743861047790,-500.0,0.00021095,2]
[357177624,1743861047800,-500.0,0.00021095,2]
[357177625,1743861047811,-2259.57,0.00021095,2]
[357177626,1743861047824,-500.0,0.00021095,2]
[357177627,1743861047835,-327.07188799,0.00021095,2]
[357177628,1743861047846,-4020.06,0.00021095,2]
[357177629,1743861047858,-500.0,0.00021095,2]
[357177630,1743861047869,-500.0,0.00021095,2]
[357177631,1743861047880,-500.0,0.00021095,2]
[357177632,1743861047891,-500.0,0.00021095,2]
[357177633,1743861047904,-962.68,0.00021095,2]
[357177634,1743861047915,-1394.62,0.00021095,2]
[357177635,1743861047925,-500.0,0.00021095,2]
[357177636,1743861047936,-500.0,0.00021095,2]
[357177637,1743861047947,-500.0,0.00021095,2]
[357177638,1743861047957,-500.0,0.00021095,2]
[357177639,1743861047969,-14067.93,0.00021095,2]
[357177640,1743861047980,-920.98,0.00021095,2]
[357177641,1743861047990,-500.0,0.00021095,2]
[357177642,1743861048001,-1022.95,0.00021095,2]
[357177643,1743861048012,-500.0,0.00021095,2]
[357177644,1743861048024,-500.0,0.00021095,2]
[357177645,1743861048035,-500.0,0.00021095,2]
[357177646,1743861048046,-500.0,0.00021095,2]
[357177647,1743861048057,-173.29058633,0.00021095,2]
[357177648,1743861048067,-500.0,0.00021095,2]
[357177649,1743861048076,-500.0,0.00021095,2]
[357177650,1743861048086,-797.72,0.00021095,2]
[357177651,1743861048095,-500.0,0.00021095,2]
[357177652,1743861048106,-500.0,0.00021095,2]
[357177653,1743861048115,-500.0,0.00021095,2]
[357177654,1743861048124,-324.39711202,0.00021095,2]
[357177655,1743861048133,-510.47,0.00021095,2]
[357177656,1743861048142,-2149.2,0.00021095,2]
[357177657,1743861048151,-621.57,0.00021095,2]
[357177658,1743861048161,-500.0,0.00021095,2]
[357177659,1743861048175,-500.0,0.00021095,2]
[357177660,1743861048184,-154.07976798,0.00021269,2]
[357177661,1743861048194,-500.0,0.00021369,2]
[357177662,1743861048203,-500.0,0.00021369,2]
[357177663,1743861048213,-500.0,0.00021369,2]
[357177664,1743861048222,-500.0,0.00021369,2]
[357177665,1743861048232,-500.0,0.00021369,2]
[357177666,1743861048241,-500.0,0.00021369,2]
[357177667,1743861048251,-876.05,0.00021369,2]
[357177668,1743861048260,-500.0,0.00021369,2]
[357177669,1743861048269,-500.0,0.00021369,2]
[357177670,1743861048279,-500.0,0.00021369,2]
[357177671,1743861048288,-500.0,0.00021369,2]
[357177672,1743861048297,-500.0,0.00021369,2]
[357177673,1743861048307,-536.58,0.00021369,2]
[357177674,1743861048316,-983.09,0.00021369,2]
[357177675,1743861048326,-500.0,0.00021369,2]
[357177676,1743861048336,-500.0,0.00021369,2]
[357177677,1743861048346,-500.0,0.00021369,2]
[357177678,1743861048356,-2143.93,0.00021369,2]
[357177679,1743861048366,-500.0,0.00021369,2]
[357177680,1743861048375,-636.75,0.00021369,2]
[357177681,1743861048385,-500.0,0.00021369,2]
[357177682,1743861048394,-1663.92,0.00021369,2]
[357177683,1743861048404,-500.0,0.00021369,2]
[357177684,1743861048414,-2101.11,0.00021369,2]
[357177685,1743861048630,-500.0,0.00021369,2]
[357177686,1743861048645,-500.0,0.00021369,2]
[357177687,1743861048654,-500.0,0.00021369,2]
[357177688,1743861048663,-500.0,0.00021369,2]
[357177689,1743861048673,-500.0,0.00021369,2]
[357177690,1743861048682,-500.0,0.00021369,2]
[357177691,1743861048691,-500.0,0.00021369,2]
[357177692,1743861048701,-500.0,0.00021369,2]
[357177693,1743861048710,-500.0,0.00021369,2]
[357177694,1743861048719,-500.0,0.00021369,2]
[357177695,1743861048730,-500.0,0.00021369,2]
[357177696,1743861048740,-500.0,0.00021369,2]
[357177697,1743861048749,-500.0,0.00021369,2]
[357177698,1743861048759,-500.0,0.00021369,2]
[357177699,1743861048768,-500.0,0.00021369,2]
[357177700,1743861048778,-500.0,0.00021369,2]
[357177701,1743861048788,-500.0,0.00021369,2]
[357177702,1743861048797,-500.0,0.00021369,2]
[357177703,1743861048806,-1461.98,0.00021369,2]
[357177704,1743861048816,-500.0,0.00021369,2]
[357177705,1743861048828,-500.0,0.00021369,2]
[357177706,1743861048837,-1262.37,0.00021369,2]
[357177707,1743861048846,-500.0,0.00021369,2]
[357177708,1743861048856,-500.0,0.00021369,2]
[357177709,1743861048866,-500.0,0.00021369,2]
[357177710,1743861048877,-3815.9,0.00021369,2]
[357177711,1743861048886,-500.0,0.00021369,2]
[357177712,1743861048896,-500.0,0.00021369,2]
[357177713,1743861048906,-1548.21,0.00021369,2]
[357177714,1743861048916,-1524.27,0.00021369,2]
[357177715,1743861048926,-646.31,0.00021369,2]
[357177716,1743861048935,-758.38,0.00021369,2]
[357177717,1743861048945,-500.0,0.00021369,2]
[357177718,1743861048954,-676.38,0.00021369,2]
[357177719,1743861048964,-593.38,0.00021369,2]
[357177720,1743861048974,-500.0,0.00021369,2]
[357177721,1743861048984,-500.0,0.00021369,2]
[357177722,1743861048994,-455.5498913,0.00021369,2]
[357177723,1743861049004,-1245.73,0.00021369,2]
[357177724,1743861049013,-500.0,0.00021369,2]
[357177725,1743861049024,-500.0,0.00021369,2]
[357177726,1743861049034,-2259.57,0.00021369,2]
[357177727,1743861049044,-500.0,0.00021369,2]
[357177728,1743861049054,-4020.06,0.00021369,2]
[357177729,1743861049063,-500.0,0.00021369,2]
[357177730,1743861049073,-500.0,0.00021369,2]
[357177731,1743861049083,-500.0,0.00021369,2]
[357177732,1743861049093,-500.0,0.00021369,2]
[357177733,1743861049102,-962.68,0.00021369,2]
[357177734,1743861049112,-1394.62,0.00021369,2]
[357177735,1743861049123,-500.0,0.00021369,2]
[357177736,1743861049132,-500.0,0.00021369,2]
[357177737,1743861049143,-500.0,0.00021369,2]
[357177738,1743861049152,-500.0,0.00021369,2]
[357177739,1743861049162,-14067.93,0.00021369,2]
[357177740,1743861049172,-920.98,0.00021369,2]
[357177741,1743861049182,-500.0,0.00021369,2]
[357177742,1743861049192,-1022.95,0.00021369,2]
[357177743,1743861049202,-440.85657698,0.00021369,2]
[357177744,1743861049212,-500.0,0.00021369,2]
[357177745,1743861049221,-500.0,0.00021369,2]
[357177746,1743861049231,-500.0,0.00021369,2]
[357177747,1743861049240,-236.45081736,0.00021369,2]
[357177748,1743861049251,-797.72,0.00021369,2]
[357177749,1743861049260,-500.0,0.00021369,2]
[357177750,1743861049270,-500.0,0.00021369,2]
[357177751,1743861049279,-500.0,0.00021369,2]
[357177752,1743861049289,-510.47,0.00021369,2]
[357177753,1743861049298,-2149.2,0.00021369,2]
[357177754,1743861049308,-621.57,0.00021369,2]
[357177755,1743861049318,-500.0,0.00021369,2]
[357177756,1743861049327,-500.0,0.00021369,2]
[357177757,1743861049337,-151.0,0.000214,4]
[357177758,1743861049348,-357.85443059,0.00021439,2]
[357177759,1743861049358,-166.915,0.00021533,2]
[357177760,1743861049369,-160.0,0.00021555,3]
[357177761,1743861049379,-500.0,0.00021643,2]
[357177762,1743861049388,-450.55,0.00021643,2]
[357177763,1743861049397,-500.0,0.00021643,2]
[357177764,1743861049407,-500.0,0.00021643,2]
[357177765,1743861049416,-500.0,0.00021643,2]
[357177766,1743861049426,-876.05,0.00021643,2]
[357177767,1743861049435,-500.0,0.00021643,2]
[357177768,1743861049445,-537.64,0.00021643,2]
[357177769,1743861049454,-500.0,0.00021643,2]
[357177770,1743861049463,-500.0,0.00021643,2]
[357177771,1743861049473,-500.0,0.00021643,2]
[357177772,1743861049482,-536.58,0.00021643,2]
[357177773,1743861049492,-983.09,0.00021643,2]
[357177774,1743861049502,-323.04,0.00021643,2]
[357177775,1743861049511,-500.0,0.00021643,2]
[357177776,1743861049521,-500.0,0.00021643,2]
[357177777,1743861049530,-2143.93,0.00021643,2]
[357177778,1743861049540,-500.0,0.00021643,2]
[357177779,1743861049550,-500.0,0.00021643,2]
[357177780,1743861049559,-1663.92,0.00021643,2]
[357177781,1743861049569,-500.0,0.00021643,2]
[357177782,1743861049579,-2101.11,0.00021643,2]
[357177783,1743861049588,-500.0,0.00021643,2]
[357177784,1743861049597,-500.0,0.00021643,2]
[357177785,1743861049606,-500.0,0.00021643,2]
[357177786,1743861049616,-500.0,0.00021643,2]
[357177787,1743861049626,-500.0,0.00021643,2]
[357177788,1743861049635,-500.0,0.00021643,2]
[357177789,1743861049646,-500.0,0.00021643,2]
[357177790,1743861049655,-589.3,0.00021643,2]
[357177791,1743861049665,-500.0,0.00021643,2]
[357177792,1743861049674,-500.0,0.00021643,2]
[357177793,1743861049683,-500.0,0.00021643,2]
[357177794,1743861049693,-500.0,0.00021643,2]
[357177795,1743861049703,-500.0,0.00021643,2]
[357177796,1743861049713,-500.0,0.00021643,2]
[357177797,1743861049722,-584.16598153,0.00021643,2]
[357177798,1743861049732,-500.0,0.00021643,2]
[357177799,1743861049741,-500.0,0.00021643,2]
[357177800,1743861049751,-621.20156503,0.00021643,2]
[357177801,1743861049760,-1461.98,0.00021643,2]
[357177802,1743861049770,-500.0,0.00021643,2]
[357177803,1743861049779,-500.0,0.00021643,2]
[357177804,1743861049789,-1262.37,0.00021643,2]
[357177805,1743861049798,-500.0,0.00021643,2]
[357177806,1743861049808,-500.0,0.00021643,2]
[357177807,1743861049819,-500.0,0.00021643,2]
[357177808,1743861049833,-3815.9,0.00021643,2]
[357177809,1743861049843,-500.0,0.00021643,2]
[357177810,1743861049853,-500.0,0.00021643,2]
[357177811,1743861049863,-1548.21,0.00021643,2]
[357177812,1743861049873,-1524.27,0.00021643,2]
[357177813,1743861049884,-646.31,0.00021643,2]
[357177814,1743861049893,-758.38,0.00021643,2]
[357177815,1743861049903,-500.0,0.00021643,2]
[357177816,1743861049912,-676.38,0.00021643,2]
[357177817,1743861049922,-593.38,0.00021643,2]
[357177818,1743861049932,-500.0,0.00021643,2]
[357177819,1743861049943,-500.0,0.00021643,2]
[357177820,1743861049952,-1245.73,0.00021643,2]
[357177821,1743861049961,-500.0,0.00021643,2]
[357177822,1743861049971,-500.0,0.00021643,2]
[357177823,1743861049980,-2259.57,0.00021643,2]
[357177824,1743861049989,-500.0,0.00021643,2]
[357177825,1743861049999,-4020.06,0.00021643,2]
[357177826,1743861050009,-500.0,0.00021643,2]
[357177827,1743861050018,-500.0,0.00021643,2]
[357177828,1743861050027,-500.0,0.00021643,2]
[357177829,1743861050037,-415.84,0.00021643,2]
[357177830,1743861050046,-962.68,0.00021643,2]
[357177831,1743861050055,-1394.62,0.00021643,2]
[357177832,1743861050065,-500.0,0.00021643,2]
[357177833,1743861050074,-500.0,0.00021643,2]
[357177834,1743861050084,-500.0,0.00021643,2]
[357177835,1743861050093,-500.0,0.00021643,2]
[357177836,1743861050102,-14067.93,0.00021643,2]
[357177837,1743861050111,-920.98,0.00021643,2]
[357177838,1743861050120,-500.0,0.00021643,2]
[357177839,1743861050129,-1022.95,0.00021643,2]
[357177840,1743861050138,-500.0,0.00021643,2]
[357177841,1743861050147,-500.0,0.00021643,2]
[357177842,1743861050157,-500.0,0.00021643,2]
[357177843,1743861050166,-797.72,0.00021643,2]
[357177844,1743861050175,-500.0,0.00021643,2]
[357177845,1743861050184,-500.0,0.00021643,2]
[357177846,1743861050193,-500.0,0.00021643,2]
[357177847,1743861050203,-510.47,0.00021643,2]
[357177848,1743861050212,-2149.2,0.00021643,2]
[357177849,1743861050221,-621.57,0.00021643,2]
[357177850,1743861050230,-500.0,0.00021643,2]
[357177851,1743861050240,-500.0,0.00021643,2]
[357177852,1743861050250,-7739.62052544,0.00021693,3]
[357177853,1743861050261,-823.0,0.00021761,2]
[357177854,1743861050270,-500.0,0.00021917,2]
[357177855,1743861050280,-500.0,0.00021917,2]
[357177856,1743861050289,-500.0,0.00021917,2]
[357177857,1743861050299,-500.0,0.00021917,2]
[357177858,1743861050308,-876.05,0.00021917,2]
[357177859,1743861050318,-500.0,0.00021917,2]
[357177860,1743861050328,-500.0,0.00021917,2]
[357177861,1743861050338,-500.0,0.00021917,2]
[357177862,1743861050347,-500.0,0.00021917,2]
[357177863,1743861050357,-536.58,0.00021917,2]
[357177864,1743861050366,-983.09,0.00021917,2]
[357177865,1743861050376,-500.0,0.00021917,2]
[357177866,1743861050386,-500.0,0.00021917,2]
[357177867,1743861050396,-2143.93,0.00021917,2]
[357177868,1743861050405,-500.0,0.00021917,2]
[357177869,1743861050415,-500.0,0.00021917,2]
[357177870,1743861050424,-1663.92,0.00021917,2]
[357177871,1743861050434,-500.0,0.00021917,2]
[357177872,1743861050443,-2101.11,0.00021917,2]
[357177873,1743861050452,-500.0,0.00021917,2]
[357177874,1743861050462,-500.0,0.00021917,2]
[357177875,1743861050472,-500.0,0.00021917,2]
[357177876,1743861050482,-500.0,0.00021917,2]
[357177877,1743861050491,-500.0,0.00021917,2]
[357177878,1743861050501,-500.0,0.00021917,2]
[357177879,1743861050511,-500.0,0.00021917,2]
[357177880,1743861050521,-500.0,0.00021917,2]
[357177881,1743861050531,-500.0,0.00021917,2]
[357177882,1743861050541,-500.0,0.00021917,2]
[357177883,1743861050551,-500.0,0.00021917,2]
[357177884,1743861050561,-500.0,0.00021917,2]
[357177885,1743861050570,-500.0,0.00021917,2]
[357177886,1743861050580,-500.0,0.00021917,2]
[357177887,1743861050589,-500.0,0.00021917,2]
[357177888,1743861050599,-1461.98,0.00021917,2]
[357177889,1743861050610,-500.0,0.00021917,2]
[357177890,1743861050620,-500.0,0.00021917,2]
[357177891,1743861050629,-1262.37,0.00021917,2]
[357177892,1743861050640,-500.0,0.00021917,2]
[357177893,1743861050650,-500.0,0.00021917,2]
[357177894,1743861050659,-500.0,0.00021917,2]
[357177895,1743861050669,-3815.9,0.00021917,2]
[357177896,1743861050679,-500.0,0.00021917,2]
[357177897,1743861050688,-500.0,0.00021917,2]
[357177898,1743861050698,-1548.21,0.00021917,2]
[357177899,1743861050708,-1524.27,0.00021917,2]
[357177900,1743861050718,-646.31,0.00021917,2]
[357177901,1743861050727,-758.38,0.00021917,2]
[357177902,1743861050736,-500.0,0.00021917,2]
[357177903,1743861050746,-676.38,0.00021917,2]
[357177904,1743861050756,-593.38,0.00021917,2]
[357177905,1743861050765,-500.0,0.00021917,2]
[357177906,1743861050775,-500.0,0.00021917,2]
[357177907,1743861050785,-1245.73,0.00021917,2]
[357177908,1743861050794,-500.0,0.00021917,2]
[357177909,1743861050804,-500.0,0.00021917,2]
[357177910,1743861050814,-2259.57,0.00021917,2]
[357177911,1743861050826,-500.0,0.00021917,2]
[357177912,1743861050836,-4020.06,0.00021917,2]
[357177913,1743861050846,-500.0,0.00021917,2]
[357177914,1743861050857,-500.0,0.00021917,2]
[357177915,1743861050867,-500.0,0.00021917,2]
[357177916,1743861050877,-962.68,0.00021917,2]
[357177917,1743861050886,-1394.62,0.00021917,2]
[357177918,1743861050896,-500.0,0.00021917,2]
[357177919,1743861050907,-500.0,0.00021917,2]
[357177920,1743861050917,-500.0,0.00021917,2]
[357177921,1743861050926,-500.0,0.00021917,2]
[357177922,1743861050936,-14067.93,0.00021917,2]
[357177923,1743861050946,-920.98,0.00021917,2]
[357177924,1743861050956,-500.0,0.00021917,2]
[357177925,1743861050966,-1022.95,0.00021917,2]
[357177926,1743861050975,-500.0,0.00021917,2]
[357177927,1743861050984,-500.0,0.00021917,2]
[357177928,1743861050993,-500.0,0.00021917,2]
[357177929,1743861051003,-797.72,0.00021917,2]
[357177930,1743861051013,-500.0,0.00021917,2]
[357177931,1743861051022,-500.0,0.00021917,2]
[357177932,1743861051032,-500.0,0.00021917,2]
[357177933,1743861051042,-510.47,0.00021917,2]
[357177934,1743861051052,-2149.2,0.00021917,2]
[357177935,1743861051062,-621.57,0.00021917,2]
[357177936,1743861051072,-500.0,0.00021917,2]
[357177937,1743861051082,-500.0,0.00021917,2]
[357177938,1743861051092,-500.0,0.00022,2]
[357177939,1743861051102,-303.06,0.00022191,2]
[357177940,1743861051112,-500.0,0.00022191,2]
[357177941,1743861051122,-500.0,0.00022191,2]